fUSD/lending_fUSD_20240627
["ID","MTS","AMOUNT","RATE_DAILY","PERIOD"]
[330495303,1719511833569,-500.0,0.00022805,2]
[330495304,1719511833579,-200.0,0.00022805,2]
[330495305,1719511833588,-245.48920401,0.00022815,2]
[330495306,1719511833597,-150.47367995,0.00022821,2]
[330495307,1719511833607,-197.98012706,0.00022825,2]
[330495308,1719511833616,-4340.71378616,0.00022837,3]
[330495309,1719511833625,-226.39140269,0.00022849,2]
[330495310,1719511833635,-150.0,0.00022868,2]
[330495311,1719511833644,-13022.1413585,0.0002287,3]
[330495312,1719511833653,-30384.9965031,0.0002288,3]
[330495313,1719511833663,-24107.13702968,0.0002289,2]
[330495314,1719511833672,-245.48920401,0.0002289,2]
[330495315,1719511833682,-752.38776104,0.0002289,2]
[330495316,1719511833691,-2875.60395382,0.0002289,2]
[330495317,1719511833702,-25000.0,0.0002289,2]
[330495318,1719511833712,-1000.0,0.0002289,2]
[330495319,1719511833721,-444.6593,0.0002289,2]
[330495320,1719511833731,-2000.0,0.000229,2]
[330495321,1719511833741,-191.0,0.000229,5]
[330495322,1719511833750,-667.0,0.000229,11]
[330495323,1719511833759,-4340.71378616,0.00022959,3]
[330495324,1719511833769,-163.60592626,0.00022959,2]
[330495325,1719511833778,-4340.71378616,0.00022969,3]
[330495326,1719511833788,-8336.24970961,0.00022969,3]
[330495327,1719511833801,-5705.47045113,0.00022969,3]
[330495328,1719511833813,-500.0,0.00022969,3]
[330495329,1719511833937,-2277.24310221,0.00022969,3]
[330495330,1719511833949,-465.65120639,0.00022969,3]
[330495331,1719511833961,-78.24067526,0.00022969,3]
[330495332,1719511833971,-39066.4240754,0.0002297,3]
[330495333,1719511833981,-362.91053964,0.00022974,2]
[330495334,1719511833990,-4340.71378616,0.00022978,3]
[330495335,1719511833999,-1000.0,0.00022979,2]
[330495336,1719511834009,-1000.0,0.00022979,2]
[330495337,1719511834021,-1000.0,0.00022979,2]
[330495338,1719511834031,-1000.0,0.00022979,2]
[330495339,1719511834042,-1000.0,0.00022979,2]
[330495340,1719511834054,-91154.9895094,0.00022979,3]
[330495341,1719511834065,-26773.5831859,0.00022979,3]
[330495342,1719511834074,-8681.42757232,0.0002298,3]
[330495343,1719511834083,-2677.35831859,0.0002298,3]
[330495344,1719511834093,-74966.0329205,0.0002298,3]
[330495345,1719511834103,-251.7154254,0.00022984,2]
[330495346,1719511834113,-2087.1492641,0.00022984,2]
[330495347,1719511834123,-266.754725,0.00022984,2]
[330495348,1719511834133,-926.1193959,0.00022984,2]
[330495349,1719511834145,-226.39140269,0.00022985,2]
[330495350,1719511834155,-664.69660926,0.00022988,2]
[330495351,1719511834165,-150.01,0.00022988,2]
[330495352,1719511834176,-1000.0,0.00022988,2]
[330495353,1719511834186,-1000.0,0.00022988,2]
[330495354,1719511834196,-1000.0,0.00022988,2]
[330495355,1719511834205,-1000.0,0.00022988,2]
[330495356,1719511834215,-874.05250661,0.00022988,2]
[330495357,1719511834225,-500.0,0.00022988,2]
[330495358,1719511834234,-175410.09137034,0.00022989,2]
[330495382,1719511838704,-11035.06473727,0.00013574,2]
[330495384,1719511838714,-943.57,0.00019688,2]
[330495386,1719511838724,-524.19,0.00022065,3]
[330495388,1719511838733,-943.57,0.0002215,2]
[330495390,1719511838743,-498.52245695,0.00022988,2]
[330495392,1719511838753,-14117.56150043,0.00022989,2]
[330495394,1719511838763,-151.0,0.00022989,2]
[330495396,1719511838773,-220.78694777,0.00022989,2]
[330495398,1719511838783,-22229.48508974,0.0002299,7]
[330495400,1719511838792,-1194428.6411626,0.0002299,5]
[330495401,1719511838805,-2566.93716306,0.0002299,5]
[330495402,1719511838816,-508.04165057,0.0002299,5]
[330495403,1719511838828,-24180.08260242,0.0002299,5]
[330495404,1719511838869,-611.01483907,0.0002299,5]
[330495405,1719511838881,-680.9102,0.0002299,5]
[330495406,1719511838894,-573147.75724167,0.0002299,5]
[330495420,1719511839039,-4413.5,0.0002299,5]
[330495422,1719511839051,-2019.66399119,0.0002299,5]
[330495452,1719511840274,-334.0,0.000195,5]
[330495453,1719511840284,-533.1,0.00019831,2]
[330495454,1719511840436,-5263.9,0.00019831,2]
[330495455,1719511840446,-925.39455693,0.0002299,5]
[330495456,1719511840455,-319406.13927734,0.0002299,5]
[330495457,1719511840467,-93535.39172674,0.0002299,5]
[330495458,1719511840478,-65750.0,0.0002299,5]
[330495459,1719511840489,-1180.22303273,0.0002299,5]
[330495460,1719511840620,-9135.74150963,0.0002299,5]
[330495461,1719511840631,-1039.31270925,0.0002299,5]
[330495462,1719511840642,-1340.0,0.0002299,5]
[330495463,1719511840653,-24996.56185242,0.0002299,5]
[330495464,1719511840665,-42763.44289436,0.0002299,5]
[330495465,1719511840676,-27662.25195561,0.0002299,5]
[330495466,1719511840688,-17312.26703089,0.0002299,5]
[330495467,1719511840701,-850.78767471,0.0002299,5]
[330495469,1719511840857,-373.89184271,0.00022988,2]
[330495470,1719511840867,-288.28815729,0.0002299,5]
[330495471,1719511840879,-473.26955168,0.0002299,5]
[330495547,1719511843289,-1189.19643472,0.00021978,2]
[330495548,1719511843302,-4421.64394178,0.00021978,2]
[330495549,1719511843311,-29062.35605822,0.0002299,5]
[330495550,1719511843574,-477.8877877,0.0002299,5]
[330495551,1719511843585,-720.19752,0.0002299,5]
[330495552,1719511843736,-15940.36747367,0.0002299,5]
[330495553,1719511843748,-3413.67018244,0.0002299,5]
[330495554,1719511843760,-8081.28438641,0.0002299,5]
[330495568,1719511844065,-16665.5321764,0.0002299,5]
[330495569,1719511844078,-11807.56338237,0.0002299,5]
[330495570,1719511844089,-500.13282941,0.0002299,5]
[330495571,1719511844101,-2383.28505014,0.0002299,5]
[330495572,1719511844154,-286.93626806,0.0002299,5]
[330495575,1719511844166,-11116.98464147,0.0002299,5]
[330495577,1719511844177,-972.41495602,0.0002299,5]
[330495587,1719511848270,-5610.84037642,0.00022079,2]
[330495588,1719511848280,-69389.15962358,0.0002299,5]
[330495589,1719511848369,-24454.64895793,0.0002299,5]
[330495590,1719511848381,-346.76974357,0.0002299,5]
[330495591,1719511848392,-67583.94693851,0.0002299,5]
[330495592,1719511848403,-466.70474391,0.0002299,5]
[330495593,1719511848417,-443.26,0.0002299,5]
[330495594,1719511848428,-1576.19937982,0.0002299,5]
[330495595,1719511848488,-458.27649239,0.0002299,5]
[330495596,1719511848499,-2017.62724224,0.0002299,5]
[330495597,1719511848510,-1597.20860124,0.0002299,5]
[330495598,1719511848521,-607.94516301,0.0002299,5]
[330495599,1719511848533,-1971.3503858,0.0002299,5]
[330495600,1719511848544,-956.17199593,0.0002299,5]
[330495601,1719511848555,-545.35093971,0.0002299,5]
[330495602,1719511848567,-2117.25887764,0.0002299,5]
[330495603,1719511848578,-585.79333653,0.0002299,5]
[330495604,1719511848590,-3855.0044704,0.0002299,5]
[330495605,1719511848601,-4455.29405457,0.0002299,5]
[330495606,1719511848613,-13765.58284051,0.0002299,5]
[330495607,1719511848658,-576.72697962,0.0002299,5]
[330495609,1719511997542,1000.0,0.00025611,120]
[330495610,1719512143498,2004.4104095,0.00011199,2]
[330495611,1719512179432,684.44148417,0.00011199,2]
[330495612,1719512228482,483.00146508,0.00011199,2]
[330495613,1719512265140,155.0,0.00011199,2]
[330495614,1719512268295,155.31972744,0.00011199,2]
[330495615,1719512268335,190.21272341,0.00011199,2]
[330495616,1719512271441,475.03236133,0.00011199,2]
[330495617,1719512273465,155.0,0.00011199,2]
[330495618,1719512290802,226.97665617,0.00011199,2]
[330495619,1719512292724,346.03148912,0.00011199,2]
[330495620,1719512297383,217.84498894,0.00011199,2]
[330495621,1719512300838,158.25040673,0.00011199,2]
[330495622,1719512302490,235.27505482,0.00011199,2]
[330495623,1719512302679,202.44445,0.00011199,2]
[330495624,1719512312203,155.0,0.00011199,2]
[330495625,1719512313681,450.07456747,0.00011199,2]
[330495626,1719512436395,206.07168017,0.00011199,2]
[330495627,1719512501745,200.0,0.00011143,2]
[330495628,1719512573700,290.37415106,0.00011143,2]
[330495629,1719512580280,310.0,0.00011143,2]
[330495630,1719512614291,255.0207107,0.00011199,2]
[330495631,1719512638207,847.13650724,0.00011199,2]
[330495633,1719512660140,-205.98671825,0.00012273,2]
[330495634,1719512660163,-226.97665617,0.00012302,2]
[330495635,1719512660186,-155.0,0.00012314,2]
[330495636,1719512660212,-206.07168017,0.00013472,2]
[330495637,1719512660237,-155.0,0.00013506,2]
[330495638,1719512660262,-46548.96494541,0.00013543,2]
[330495639,1719512725483,-2812.0,0.00013543,2]
[330495642,1719512776283,226.97665617,0.00011199,2]
[330495645,1719512839404,158.92298885,0.00011199,2]
[330495711,1719513004140,150.0,0.00011199,2]
[330495712,1719513004433,150.0,0.00011199,2]
[330495713,1719513004637,150.0,0.00011199,2]
[330495714,1719513004906,150.0,0.00011199,2]
[330495715,1719513005422,150.0,0.00011199,2]
[330495716,1719513005781,150.0,0.00011199,2]
[330495717,1719513005988,150.0,0.00011199,2]
[330495718,1719513006287,150.0,0.00011199,2]
[330495719,1719513006542,150.0,0.00011199,2]
[330495720,1719513006807,159.89396103,0.00011199,2]
[330495721,1719513022614,474.4066724,0.00011199,2]
[330495731,1719513032622,-155.36589403,0.00012273,2]
[330495732,1719513032631,-155.0,0.00012273,2]
[330495733,1719513032640,-242.12454532,0.00012302,2]
[330495734,1719513032651,-155.14250514,0.00012302,2]
[330495735,1719513032660,-366.7824438,0.00012302,2]
[330495736,1719513032670,-328.54104863,0.00012302,2]
[330495737,1719513032680,-206.07168017,0.00012302,2]
[330495738,1719513032690,-300.0,0.00012313,2]
[330495739,1719513032699,-314.4466896,0.00013128,2]
[330495740,1719513032709,-1368.05,0.00013472,2]
[330495741,1719513032718,-156.8030203,0.00013516,2]
[330495742,1719513032728,-1236.61656595,0.00013574,2]
[330495743,1719513032782,-391.71418611,0.00013574,2]
[330495744,1719513032792,-3966.27945384,0.00015,2]
[330495745,1719513032801,-260.17730667,0.00015479,2]
[330495746,1719513032812,-58.05823805,0.00015479,2]
[330495747,1719513032822,-155.0,0.00015535,2]
[330495748,1719513032832,-180.88908444,0.00015579,2]
[330495749,1719513032841,-17.88093979,0.00015832,2]
[330495750,1719513032853,-209.09571638,0.00015832,2]
[330495751,1719513032863,-226.97665617,0.00015832,2]
[330495752,1719513032872,-167.79,0.00016495,2]
[330495753,1719513032882,-365.59415282,0.000165,2]
[330495754,1719513032894,-1397.89877002,0.000165,2]
[330495755,1719513032903,-18.88470461,0.00017259,2]
[330495756,1719513032915,-281.11529539,0.00017259,2]
[330495757,1719513032926,-6373.88470461,0.0001726,2]
[330495758,1719513032936,-444.50127724,0.0001726,2]
[330495759,1719513032949,-1228.89401815,0.0001726,2]
[330495760,1719513032958,-470.10704664,0.000177,2]
[330495761,1719513032966,-2828.06320888,0.00017889,2]
[330495762,1719513032975,-240.38467831,0.00018272,2]
[330495763,1719513032984,-398.46,0.00018696,2]
[330495764,1719513032994,-157.52085627,0.00019069,2]
[330495765,1719513033003,-202.10581647,0.00019069,2]
[330495766,1719513033013,-155.0,0.00019077,2]
[330495767,1719513033022,-182.33,0.00019452,2]
[330495768,1719513033032,-499.99,0.00019452,2]
[330495769,1719513033041,-500.0,0.00019452,2]
[330495770,1719513033051,-235.51,0.0001964,2]
[330495771,1719513033061,-180.91,0.00020451,2]
[330495772,1719513033071,-250.0,0.00020474,2]
[330495773,1719513033080,-150.0,0.00020479,2]
[330495774,1719513033089,-1056.22,0.00020574,2]
[330495775,1719513033099,-250.0,0.00020578,2]
[330495776,1719513033108,-167.79,0.00020619,2]
[330495777,1719513033118,-22783.66,0.0002064,2]
[330495778,1719513033128,-250.0,0.00020648,2]
[330495779,1719513033137,-167.07,0.00020677,2]
[330495780,1719513033147,-344.0,0.00020888,2]
[330495782,1719513033157,-398.46,0.0002096,2]
[330495784,1719513033167,-1250.0,0.00021,2]
[330495786,1719513033178,-202.785526,0.00021,2]
[330495788,1719513033187,-173.49,0.00021399,2]
[330495790,1719513033198,-24229.0,0.00021626,2]
[330495792,1719513033208,-158.1,0.00021644,2]
[330495794,1719513033219,-169.96,0.00021719,2]
[330495796,1719513033229,-999.88,0.000218,2]
[330495798,1719513033239,-500.0,0.000219,7]
[330495800,1719513033249,-477.4,0.00021918,2]
[330495802,1719513033259,-170.38,0.00021918,2]
[330495804,1719513033270,-151.29,0.00021973,2]
[330495806,1719513033280,-510.7171,0.00021975,2]
[330495808,1719513033289,-1838.7809,0.00021975,2]
[330495810,1719513033299,-30037.0164,0.00021975,2]
[330495812,1719513033308,-159.50287503,0.00022,2]
[330495814,1719513033318,-1000.0,0.00022,8]
[330495816,1719513033329,-169.26634869,0.00022022,2]
[330495818,1719513033343,-1000.0,0.00022042,7]
[330495820,1719513033353,-490.411812,0.00022079,2]
[330495823,1719513033366,-448.86,0.00022096,3]
[330495825,1719513033379,-1500.0,0.000221,8]
[330495827,1719513033388,-15389.3223,0.00022106,2]
[330495828,1719513033398,-1254.7553,0.00022106,2]
[330495831,1719513033408,-490.41181193,0.00022169,2]
[330495833,1719513033421,-673.29,0.00022196,3]
[330495835,1719513033431,-2000.0,0.000222,8]
[330495837,1719513033441,-5928.9644,0.00022206,2]
[330495839,1719513033450,-159.50187486,0.00022227,2]
[330495841,1719513033459,-5969.32488864,0.00022237,2]
[330495843,1719513033470,-150.67314752,0.00022245,2]
[330495845,1719513033479,-490.41181193,0.00022259,2]
[330495847,1719513033488,-171.58277679,0.00022286,2]
[330495849,1719513033498,-2500.0,0.000223,8]
[330495851,1719513033508,-5969.32488856,0.0002231,2]
[330495853,1719513033518,-224.43,0.00022311,3]
[330495855,1719513033528,-27772.4259,0.00022321,2]
[330495857,1719513033537,-208.43220027,0.00022337,2]
[330495859,1719513033547,-490.41181193,0.00022349,2]
[330495861,1719513033557,-171.36664059,0.00022352,2]
[330495863,1719513033567,-152.13254029,0.00022374,2]
[330495865,1719513033576,-5969.32488856,0.00022382,2]
[330495867,1719513033586,-500.0,0.00022386,2]
[330495869,1719513033596,-430.90844821,0.00022394,2]
[330495871,1719513033606,-500.0,0.000224,8]
[330495873,1719513033616,-161.09782061,0.00022416,2]
[330495875,1719513033626,-326.61948568,0.00022437,2]
[330495877,1719513033636,-169.26634869,0.00022437,2]
[330495879,1719513033647,-490.41181193,0.00022439,2]
[330495881,1719513033657,-5969.32488856,0.00022455,2]
[330495883,1719513033667,-326.61948568,0.00022475,2]
[330495885,1719513033677,-4050.7381,0.00022486,2]
[330495887,1719513033686,-326.61948568,0.00022496,2]
[330495889,1719513033696,-500.0,0.000225,8]
[330495892,1719513033706,-5969.32488856,0.00022527,2]
[330495943,1719513034168,-490.41181193,0.0002253,2]
[330495949,1719513034217,-729.81662864,0.00022565,2]
[330495951,1719513034228,-211.29864252,0.00022588,2]
[330495953,1719513034237,-5969.32488856,0.000226,2]
[330495955,1719513034247,-500.0,0.000226,8]
[330495957,1719513034257,-490.41181193,0.0002262,2]
[330495959,1719513034267,-991.99169791,0.0002264,2]
[330495961,1719513034276,-384.77028012,0.0002264,2]
[330495963,1719513034286,-5969.32488856,0.00022672,2]
[330495965,1719513034296,-161.61124869,0.00022675,2]
[330495967,1719513034305,-326.61948568,0.00022692,2]
[330495969,1719513034314,-285.75148297,0.00022693,2]
[330495971,1719513034324,-500.0,0.000227,8]
[330495973,1719513034337,-490.41181193,0.0002271,2]
[330495975,1719513034348,-5969.32488856,0.00022745,2]
[330495977,1719513034357,-999.88,0.00022745,2]
[330495979,1719513034371,-150.0,0.00022747,2]
[330495981,1719513034380,-298.7916,0.0002276,2]
[330495983,1719513034389,-201.20116,0.0002276,2]
[330495985,1719513034399,-2599.103,0.00022778,6]
[330495987,1719513034409,-193.41797284,0.0002279,2]
[330495989,1719513034421,-508.56747324,0.0002279,2]
[330495991,1719513034433,-490.41181193,0.000228,2]
[330495993,1719513034443,-600.0,0.000228,8]
[330495995,1719513034452,-500.0,0.00022805,2]
[330495997,1719513034462,-1628.67778078,0.00022817,2]
[330495998,1719513034472,-5969.32488856,0.00022817,2]
[330495999,1719513034481,-150.47367995,0.00022826,2]
[330496000,1719513034492,-220.02,0.00022877,3]
[330496001,1719513034501,-23017.7877752,0.0002288,3]
[330496002,1719513034511,-430.90844821,0.00022881,2]
[330496003,1719513034520,-176.47864197,0.0002289,2]
[330496005,1719513034530,-120695.00355059,0.0002289,2]
[330496006,1719513034539,-490.41181193,0.0002289,2]
[330496008,1719513034549,-5754.44694381,0.0002289,3]
[330496009,1719513034559,-182.04870981,0.0002289,2]
[330496010,1719513034568,-178.16282075,0.0002289,2]
[330496011,1719513034578,-5969.32488856,0.0002289,2]
[330496012,1719513034588,-1000.0,0.0002289,2]
[330496013,1719513034597,-2470.6745,0.0002289,2]
[330496014,1719513034607,-150.0,0.00022893,2]
[330496015,1719513034617,-2000.0,0.000229,2]
[330496016,1719513034627,-1235.6441641,0.00022901,2]
[330496017,1719513034637,-991.99169791,0.00022942,2]
[330496018,1719513034646,-155.73559578,0.00022957,2]
[330496019,1719513034656,-189896.749146,0.0002297,3]
[330496020,1719513034666,-5754.44694381,0.00022974,3]
[330496021,1719513034676,-179.98125638,0.0002298,2]
[330496022,1719513034686,-1619.7871053,0.00022982,2]
[330496023,1719513034696,-214.5015587,0.00022982,2]
[330496024,1719513034706,-513.9583808,0.00022984,2]
[330496025,1719513034716,-940.7043934,0.00022984,2]
[330496026,1719513034726,-280.41888203,0.00022988,2]
[330496027,1719513034736,-150.0,0.00022989,2]
[330496028,1719513034745,-90383.20012434,0.0002299,5]
[330496029,1719513034838,-6400.0,0.0002299,5]
[330496030,1719513034850,-700.0,0.0002299,5]
[330496031,1719513038550,-297.84114754,0.00012302,2]
[330496032,1719513038561,-155.0,0.00019069,2]
[330496033,1719513038571,-322.40350053,0.00019077,2]
[330496034,1719513038581,-365.47794762,0.00022799,2]
[330496036,1719513038590,-508.56747318,0.00022804,2]
[330496037,1719513038600,-508.56747318,0.00022819,2]
[330496038,1719513038610,-225.0926963,0.00022982,2]
[330496039,1719513038620,-11114.74254487,0.0002299,7]
[330496041,1719513038629,-219118.04969121,0.0002299,5]
[330496043,1719513038641,-2255.98642067,0.0002299,5]
[330496048,1719513038772,-312.6138,0.0002299,5]
[330496049,1719513038784,-861.13551302,0.0002299,5]
[330496050,1719513038796,-1773.058124,0.0002299,5]
[330496051,1719513038809,-3731.29511736,0.0002299,5]
[330496052,1719513038821,-1988.46091552,0.0002299,5]
[330496053,1719513038833,-11649.72028789,0.0002299,5]
[330496054,1719513038845,-1999.96712907,0.0002299,5]
[330496055,1719513038856,-482.74772025,0.0002299,5]
[330496060,1719513040630,-210.31416152,0.00022988,2]
[330496062,1719513040641,-460.38583848,0.0002299,5]
[330496064,1719513040818,-1124.80415106,0.0002299,5]
[330496065,1719513040831,-70196.18932463,0.0002299,5]
[330496066,1719513040843,-85567.13992091,0.0002299,5]
[330496067,1719513040855,-3755.125,0.0002299,5]
[330496068,1719513040866,-397.63098387,0.0002299,5]
[330496069,1719513040879,-271.26559914,0.0002299,5]
[330496070,1719513041040,-7021.37495721,0.0002299,5]
[330496071,1719513041054,-3870.18624551,0.0002299,5]
[330496072,1719513041065,-31757.96,0.0002299,5]
[330496073,1719513041077,-8473.13747427,0.0002299,5]
[330496074,1719513041089,-3928.72707752,0.0002299,5]
[330496075,1719513041101,-3227.78121586,0.0002299,5]
[330496076,1719513041113,-376.955934,0.0002299,5]
[330496077,1719513041189,-1697.27162398,0.0002299,5]
[330496078,1719513041200,-43800.66460358,0.0002299,5]
[330496106,1719513043671,-1628.33075206,0.00013574,2]
[330496108,1719513043680,-508.56747318,0.00022833,2]
[330496110,1719513043690,-500.0,0.00022989,2]
[330496112,1719513043700,-210.69446472,0.0002299,5]
[330496114,1719513043711,-1570.55517767,0.0002299,5]
[330496117,1719513043865,-12000.0475725,0.0002299,5]
[330496118,1719513043876,-3767.59533793,0.0002299,5]
[330496119,1719513043887,-67465.14371386,0.0002299,5]
[330496120,1719513043899,-831.48450349,0.0002299,5]
[330496121,1719513043910,-49269.39928526,0.0002299,5]
[330496122,1719513043921,-7091.87739909,0.0002299,5]
[330496156,1719513046860,-224.43,0.0002298,3]
[330496158,1719513046870,-157.73562114,0.00022988,2]
[330496160,1719513046885,-462.69727847,0.0002299,5]
[330496162,1719513046895,-1977.24572897,0.0002299,5]
[330496165,1719513046907,-30861.97877135,0.0002299,5]
[330496166,1719513046919,-1707.0,0.0002299,5]
[330496167,1719513046930,-1740.74654837,0.0002299,5]
[330496168,1719513046942,-1061.25946474,0.0002299,5]
[330496169,1719513046954,-1365.34814,0.0002299,5]
[330496170,1719513046966,-2056.76758228,0.0002299,5]
[330496171,1719513046978,-4247.25,0.0002299,5]
[330496172,1719513047114,-9941.68194839,0.0002299,5]
[330496173,1719513047126,-49293.30944005,0.0002299,5]
[330496174,1719513154964,10000.0,0.00025,60]
[330496175,1719513172485,10000.0,0.00025,60]
[330496176,1719513190819,10000.0,0.00025,60]
[330496177,1719513196980,1000.0,0.00025699,120]
[330496178,1719513212905,10000.0,0.00025,60]
[330496179,1719513232454,10000.0,0.00025,60]
[330496180,1719513255741,10000.0,0.00025,60]
[330496181,1719513315419,5550.0,0.00026,120]
[330496182,1719513345001,45000.0,0.000112,2]
[330496185,1719513861201,366.11090361,0.00011199,2]
[330496186,1719513865318,150.0,0.00011143,2]
[330496224,1719514053940,13198.70398628,0.00011199,2]
[330496227,1719514098389,219.67573938,0.00011199,2]
[330496259,1719514204224,512.19400641,0.00011199,2]
[330496274,1719514233288,-265.34221772,0.00012214,2]
[330496275,1719514233298,-482.75596204,0.00013128,2]
[330496276,1719514233308,-7.93992725,0.00013543,2]
[330496277,1719514233322,-269.12884661,0.00013543,2]
[330496278,1719514233334,-407.26164664,0.00013543,2]
[330496279,1719514233344,-805.65610875,0.00013574,2]
[330496280,1719514233353,-167.79,0.00015271,2]
[330496281,1719514233364,-300.0,0.00017291,2]
[330496282,1719514233374,-409.54,0.00017292,2]
[330496308,1719514233803,-3106.52214219,0.00017807,2]
[330496309,1719514233840,-399.7498674,0.00018717,2]
[330496310,1719514233853,-670.19749555,0.00018717,2]
[330496311,1719514233864,-499.99,0.00018835,2]
[330496312,1719514233874,-809.46787543,0.00018835,2]
[330496313,1719514233884,-285.86312721,0.00018864,2]
[330496314,1719514233894,-155.0,0.00018864,2]
[330496315,1719514233903,-420.0,0.0001888,2]
[330496316,1719514233913,-155.0,0.00018899,2]
[330496317,1719514233923,-222.61749785,0.00018919,2]
[330496318,1719514233932,-155.0,0.00018919,2]
[330496319,1719514233942,-196.17673017,0.00018919,2]
[330496320,1719514233952,-378.6472136,0.00018919,2]
[330496321,1719514233963,-155.0,0.00018919,2]
[330496322,1719514233973,-235.14915832,0.00018919,2]
[330496323,1719514233982,-314.01483175,0.00018999,2]
[330496324,1719514233991,-201.962723,0.00018999,2]
[330496325,1719514234001,-155.0,0.00018999,2]
[330496326,1719514234010,-250.0,0.00019052,2]
[330496327,1719514234019,-5907.82,0.00019063,2]
[330496328,1719514234029,-150.0,0.00019067,2]
[330496329,1719514234039,-206.07168017,0.00019177,2]
[330496330,1719514234049,-474.2858677,0.00019177,2]
[330496331,1719514234058,-186.52661499,0.00019177,2]
[330496332,1719514234068,-364.94342445,0.00019177,2]
[330496333,1719514234078,-3226.35,0.00019185,2]
[330496334,1719514234087,-729.19,0.0001923,2]
[330496335,1719514234096,-224.44,0.00019257,2]
[330496336,1719514234106,-17554.97,0.00019311,2]
[330496337,1719514234115,-250.0,0.00019334,2]
[330496338,1719514234125,-343.71,0.00019343,2]
[330496339,1719514234135,-226.97665617,0.00019354,2]
[330496340,1719514234145,-1607.60830694,0.00019388,2]
[330496341,1719514234154,-241.34,0.00019465,2]
[330496342,1719514234166,-409.54,0.00019556,2]
[330496343,1719514234175,-150.29,0.00019573,2]
[330496344,1719514234188,-1000.0,0.00019724,2]
[330496345,1719514234197,-155.0,0.00019725,2]
[330496346,1719514234207,-250.0,0.00019826,2]
[330496347,1719514234216,-553.0,0.000199,4]
[330496348,1719514234226,-1000.0,0.00019989,2]
[330496349,1719514234235,-442.73989055,0.00019997,2]
[330496350,1719514234245,-150.29,0.00020593,2]
[330496351,1719514234254,-195.23,0.00020876,2]
[330496352,1719514234264,-1250.0,0.00021,2]
[330496353,1719514234273,-202.785526,0.00021,2]
[330496354,1719514234284,-1000.0,0.00021058,2]
[330496355,1719514234294,-8729.08530806,0.000211,7]
[330496356,1719514234305,-167.0,0.00021157,2]
[330496357,1719514234314,-169.1,0.00021353,2]
[330496358,1719514234324,-1000.0,0.000215,2]
[330496359,1719514234334,-176.19,0.00021644,2]
[330496360,1719514234343,-416.38,0.00021644,2]
[330496361,1719514234352,-165.31661518,0.0002178,2]
[330496362,1719514234363,-455.94967243,0.00021788,2]
[330496363,1719514234372,-181.04384057,0.00021788,2]
[330496364,1719514234381,-254.28373659,0.00021788,2]
[330496365,1719514234391,-1001.48,0.000218,2]
[330496366,1719514234401,-409.54,0.0002182,2]
[330496367,1719514234411,-187.02,0.0002186,3]
[330496368,1719514234421,-155.85,0.0002186,3]
[330496369,1719514234430,-467.58,0.0002186,3]
[330496370,1719514234440,-94994.1696553,0.0002187,3]
[330496371,1719514234449,-202111.08250641,0.0002188,2]
[330496372,1719514234462,-2200.0,0.0002188,2]
[330496373,1719514234496,-8214.43089011,0.0002188,2]
[330496374,1719514234509,-3421.26789501,0.0002188,2]
[330496375,1719514234520,-1035.55668804,0.0002188,2]
[330496376,1719514234532,-13062.8,0.0002188,2]
[330496377,1719514234543,-1864.81020375,0.0002188,2]
[330496378,1719514234555,-295.44814184,0.0002188,2]
[330496379,1719514234567,-5287.45538079,0.0002188,2]
[330496380,1719514234579,-11718.36849569,0.0002188,2]
[330496381,1719514234591,-132569.15500837,0.0002188,2]
[330496382,1719514234600,-150.0,0.00021894,2]
[330496383,1719514234610,-241.34,0.00021898,2]
[330496384,1719514234620,-455.94967237,0.0002191,2]
[330496385,1719514234629,-397.83,0.00021918,2]
[330496386,1719514234639,-5277.45386974,0.00021924,3]
[330496387,1719514234648,-185.21,0.00021934,2]
[330496388,1719514234658,-185.21,0.0002194,2]
[330496389,1719514234667,-185.21,0.00021945,2]
[330496390,1719514234676,-254.28373659,0.00021945,2]
[330496391,1719514234686,-185.21,0.00021951,2]